fUSD/lending_fUSD_20241023
["ID","MTS","AMOUNT","RATE_DAILY","PERIOD"]
[340690638,1729685432213,-150.0,0.000429,2]
[340690639,1729685432222,-314.55,0.00043497,120]
[340690640,1729685432232,-1106.268,0.00043546,68]
[340690641,1729685432244,-250.0,0.00043577,2]
[340690642,1729685432254,-250.0,0.00043652,2]
[340690643,1729685432264,-250.0,0.00043686,120]
[340690644,1729685432275,-200.0,0.00043798,2]
[340690645,1729685432284,-175.61,0.00043831,2]
[340690646,1729685432294,-110.06940588,0.00044044,2]
[340690647,1729685432308,-135.69059412,0.00044044,2]
[340690648,1729685432318,-246.88,0.00044177,2]
[340690649,1729685432328,-255.0,0.00044389,4]
[340690650,1729685432338,-1273.91813648,0.0004439,2]
[340690651,1729685432616,164.0,6.1e-05,2]
[340690652,1729685434813,-1339.73545879,0.0004439,2]
[340690653,1729685434825,-4686.98210473,0.0004439,2]
[340690654,1729685434834,-825.1967,0.0004439,2]
[340690655,1729685434845,-71711.0291,0.0004449,2]
[340690656,1729685434855,-2500.0,0.0004449,2]
[340690657,1729685434865,-16957.3375789,0.0004458,9]
[340690658,1729685434875,-26143.2862,0.0004459,2]
[340690659,1729685434884,-1000.0,0.0004459,2]
[340690660,1729685434895,-9122.7894,0.0004459,2]
[340690661,1729685434904,-31338.87932302,0.0004459,2]
[340690662,1729685434916,-16998.36644686,0.0004459,2]
[340690671,1729685437964,-331.665,0.0004393,2]
[340690672,1729685437976,-1189.98,0.0004393,2]
[340690673,1729685438070,-3117.00877207,0.0004393,2]
[340690674,1729685438125,-19261.34622793,0.0004393,2]
[340690675,1729685438134,-4735.51326707,0.0004459,2]
[340690676,1729685438145,-3857.40151252,0.0004459,2]
[340690677,1729685438157,-16741.38379213,0.0004459,2]
[340690678,1729685438167,-308.57114892,0.0004459,2]
[340690701,1729685439922,-2901.0,0.0004459,2]
[340690702,1729685440081,-1592.4999999,0.0004459,2]
[340690703,1729685440134,-6636.8,0.0004459,2]
[340690704,1729685440145,-645.745,0.0004459,2]
[340690705,1729685440189,-2697.44580958,0.0004459,2]
[340690706,1729685440199,-62243.28981533,0.0004459,2]
[340690711,1729685442975,-1616.89082787,0.0004458,10]
[340690712,1729685443128,-818.205011,0.0004458,10]
[340690713,1729685443222,-1172.30416113,0.0004458,10]
[340690714,1729685443232,-1000.0,0.0004459,2]
[340690715,1729685443243,-33056.97578467,0.0004459,2]
[340690716,1729685443253,-169.56,0.00044609,120]
[340690717,1729685443263,-152.65,0.000448,36]
[340690718,1729685443273,-167.0,0.00044963,2]
[340690719,1729685443283,-8478.66878944,0.0004498,9]
[340690720,1729685443294,-5532.91542087,0.00045,120]
[340690721,1729685443303,-381.54,0.00045,7]
[340690722,1729685443313,-258.535,0.00045428,2]
[340690723,1729685443323,-318.26,0.000457,86]
[340690724,1729685443333,-150.0,0.000457,64]
[340690725,1729685443343,-1013.68,0.000457,86]
[340690726,1729685443353,-8478.66878944,0.00045988,9]
[340690727,1729685443362,-829.77346256,0.00045992,2]
[340690728,1729685443372,-8478.66878944,0.00045998,9]
[340690729,1729685443383,-755.22964496,0.00046092,18]
[340690730,1729685443394,-8478.66878944,0.00046182,9]
[340690731,1729685443404,-16957.3375789,0.00046192,9]
[340690732,1729685443414,-127.69997363,0.000464,2]
[340690733,1729685443434,-22.49002637,0.000464,2]
[340690734,1729685443445,-246.88,0.00046441,2]
[340690735,1729685443455,-179.14,0.00046539,2]
[340690736,1729685443466,-317.95,0.000472,14]
[340690737,1729685443477,-8478.66878944,0.00047905,10]
[340690738,1729685443487,-152.65,0.000482,45]
[340690739,1729685443498,-152.65,0.000482,45]
[340690740,1729685443509,-8478.66878944,0.00048375,10]
[340690741,1729685443520,-1042.74279854,0.00048386,30]
[340690742,1729685443530,-246.88,0.00048705,2]
[340690743,1729685443541,-582.02578726,0.00048781,7]
[340690744,1729685443552,-517.9931101,0.0004912,18]
[340690745,1729685443562,-16957.3375789,0.00049305,10]
[340690746,1729685443573,-277.66047105,0.00049315,120]
[340690747,1729685443583,-214.43280082,0.00049315,120]
[340690748,1729685443595,-500.0,0.00049315,120]
[340690749,1729685443607,-1490.9,0.00049315,60]
[340690750,1729685443618,-572.15339202,0.00049315,7]
[340690751,1729685443628,-500.0,0.00049315,2]
[340690752,1729685443638,-300.0,0.00049315,120]
[340690753,1729685443649,-500.0,0.00049315,120]
[340690754,1729685443658,-563.83,0.00049315,120]
[340690755,1729685443668,-500.0,0.00049315,120]
[340690756,1729685443678,-500.0,0.00049315,120]
[340690757,1729685443688,-500.0,0.00049315,120]
[340690758,1729685443698,-500.0,0.00049315,120]
[340690759,1729685443709,-500.0,0.00049315,120]
[340690760,1729685443718,-500.0,0.00049315,120]
[340690761,1729685443728,-500.0,0.00049315,120]
[340690762,1729685443738,-500.0,0.00049315,120]
[340690763,1729685443748,-500.0,0.00049315,14]
[340690764,1729685443758,-269.01,0.00049315,120]
[340690765,1729685443768,-500.0,0.00049315,120]
[340690766,1729685443779,-500.0,0.00049315,120]
[340690767,1729685443789,-500.0,0.00049315,120]
[340690768,1729685443798,-500.0,0.00049315,120]
[340690769,1729685443808,-523.33788256,0.00049315,120]
[340690770,1729685443819,-500.0,0.00049315,120]
[340690771,1729685443830,-500.0,0.00049315,120]
[340690772,1729685443841,-500.0,0.00049315,120]
[340690773,1729685443851,-500.0,0.00049315,120]
[340690774,1729685443863,-500.0,0.00049315,120]
[340690775,1729685443873,-603.77221018,0.00049315,120]
[340690776,1729685443883,-500.0,0.00049315,120]
[340690777,1729685443893,-500.0,0.00049315,120]
[340690778,1729685443902,-500.0,0.00049315,120]
[340690779,1729685443912,-500.0,0.00049315,120]
[340690780,1729685443922,-500.0,0.00049315,120]
[340690781,1729685443932,-500.0,0.00049315,120]
[340690782,1729685443942,-500.0,0.00049315,120]
[340690783,1729685443951,-500.0,0.00049315,120]
[340690784,1729685443966,-500.0,0.00049315,120]
[340690785,1729685443976,-300.0,0.00049315,120]
[340690786,1729685443986,-500.0,0.00049315,120]
[340690787,1729685443996,-500.0,0.00049315,120]
[340690788,1729685444006,-825.76,0.00049315,120]
[340690789,1729685444016,-520.88295647,0.00049315,120]
[340690790,1729685444025,-500.0,0.00049315,120]
[340690791,1729685444035,-500.0,0.00049315,120]
[340690792,1729685444045,-382.92505218,0.00049315,120]
[340690793,1729685444054,-500.0,0.00049315,120]
[340690794,1729685444064,-500.0,0.00049315,120]
[340690795,1729685444074,-500.0,0.00049315,120]
[340690796,1729685444084,-500.0,0.00049315,90]
[340690797,1729685444094,-1000.0,0.00049315,120]
[340690798,1729685444103,-199.8,0.00049315,30]
[340690799,1729685444113,-500.0,0.00049315,120]
[340690800,1729685444123,-500.0,0.00049315,120]
[340690801,1729685444132,-500.0,0.00049315,120]
[340690802,1729685444142,-245.76,0.0004955,120]
[340690803,1729685444152,-8924.08044922,0.00049617,10]
[340690804,1729685445912,-2517.93188336,0.00049617,10]
[340690805,1729685445925,-2499.53235797,0.00049617,10]
[340690809,1729685446709,-3015.79288835,0.00049617,10]
[340690810,1729685446720,-179.14,0.00049642,2]
[340690811,1729685446729,-500.0,0.0004968,10]
[340690812,1729685446739,-4290.25693555,0.00049833,10]
[340690813,1729685446748,-6672.19804019,0.00049843,10]
[340690814,1729685446760,-1806.47074925,0.00049843,10]
[340690815,1729685446770,-21.70200206,0.00049843,10]
[340690816,1729685446781,-4268.55493349,0.00049843,10]
[340690817,1729685446790,-825.76,0.00049852,120]
[340690818,1729685446800,-8478.66878944,0.00049853,10]
[340690819,1729685446809,-11961.91659066,0.00049853,10]
[340690820,1729685446821,-693.22924945,0.00049853,10]
[340690821,1729685446837,-1000.0,0.00045,120]
[340690822,1729685446847,-215.62496649,0.00049853,10]
[340690823,1729685446857,-2000.0,0.00049863,120]
[340690824,1729685446866,-508.49758229,0.00049863,120]
[340690825,1729685446875,-1490.9,0.00049863,60]
[340690826,1729685446885,-500.0,0.00049863,2]
[340690827,1729685446895,-300.0,0.00049863,120]
[340690828,1729685446904,-500.0,0.00049863,120]
[340690829,1729685446914,-616.4370072,0.00049863,120]
[340690830,1729685446924,-500.0,0.00049863,120]
[340690831,1729685446933,-500.0,0.00049863,120]
[340690832,1729685446943,-500.0,0.00049863,120]
[340690833,1729685446952,-500.0,0.00049863,120]
[340690834,1729685446965,-258.50380499,0.00049863,120]
[340690835,1729685446974,-500.0,0.00049863,120]
[340690836,1729685446984,-262.13672066,0.00049863,120]
[340690837,1729685446994,-500.0,0.00049863,14]
[340690838,1729685447003,-269.01,0.00049863,120]
[340690839,1729685447012,-500.0,0.00049863,120]
[340690840,1729685447022,-500.0,0.00049863,120]
[340690841,1729685447031,-531.06154486,0.00049863,120]
[340690842,1729685447041,-500.0,0.00049863,120]
[340690843,1729685447050,-500.0,0.00049863,120]
[340690844,1729685447059,-500.0,0.00049863,120]
[340690845,1729685447069,-500.0,0.00049863,120]
[340690846,1729685447079,-566.03603065,0.00049863,120]
[340690847,1729685447088,-500.0,0.00049863,120]
[340690848,1729685447098,-500.0,0.00049863,120]
[340690849,1729685447107,-500.0,0.00049863,120]
[340690850,1729685447117,-500.0,0.00049863,120]
[340690851,1729685447126,-500.0,0.00049863,120]
[340690852,1729685447136,-500.0,0.00049863,120]
[340690853,1729685447145,-500.0,0.00049863,120]
[340690854,1729685447154,-500.0,0.00049863,120]
[340690855,1729685447164,-509.12263338,0.00049863,120]
[340690856,1729685447173,-300.0,0.00049863,120]
[340690857,1729685447183,-500.0,0.00049863,120]
[340690858,1729685447192,-500.0,0.00049863,120]
[340690859,1729685447202,-500.0,0.00049863,120]
[340690860,1729685447215,-500.0,0.00049863,120]
[340690861,1729685447225,-500.0,0.00049863,120]
[340690862,1729685447234,-500.0,0.00049863,120]
[340690863,1729685447243,-500.0,0.00049863,90]
[340690864,1729685447253,-1000.0,0.00049863,120]
[340690865,1729685447262,-500.0,0.00049863,120]
[340690866,1729685447271,-500.0,0.00049863,120]
[340690867,1729685447280,-500.0,0.00049863,120]
[340690868,1729685447289,-214.63,0.00049907,120]
[340690869,1729685447298,-4290.25693555,0.0004999,10]
[340690870,1729685447308,-5250.0,0.0005,10]
[340690871,1729685447318,-18277.47444781,0.0005,120]
[340690872,1729685447327,-1516.35788955,0.000501,2]
[340690873,1729685447336,-169.56,0.00050185,120]
[340690874,1729685447346,-4290.25693555,0.0005038,10]
[340690875,1729685447355,-150.99,0.0005038,120]
[340690876,1729685447364,-8478.66878944,0.0005039,11]
[340690877,1729685447373,-4290.25693555,0.0005039,10]
[340690878,1729685447383,-2205.76695067,0.000504,11]
[340690880,1729685492720,151.0,6.301e-05,2]
[340690882,1729686325110,1708.5,0.00011,2]
[340690883,1729686356345,1297.4692806,0.00040281,120]
[340690889,1729686484048,45909.5,0.00011,2]
[340690890,1729686484077,685577.15555235,0.00011,2]
[340690891,1729686491220,195.11709293,0.00013,4]
[340690892,1729686522836,150.0,0.00014501,2]
[340690904,1729686632088,-2384.207748,0.0001475,2]
[340690906,1729686632098,-498.30522697,0.00014825,2]
[340690907,1729686632146,-1703.61103245,0.00014825,2]
[340690908,1729686632158,-2583.76135636,0.00014825,2]
[340690909,1729686632168,-1405.13506309,0.000149,2]
[340690910,1729686632178,-201.26645571,0.00015,2]
[340690911,1729686632187,-766.11189959,0.00015,2]
[340690912,1729686632206,-777.495996,0.00015,2]
[340690913,1729686632217,-287.37338502,0.00015,2]
[340690914,1729686632229,-3558.01871939,0.00015,2]
[340690915,1729686632238,-494.63102047,0.00015,2]
[340690916,1729686632247,-10025.13460313,0.0001513,2]
[340690917,1729686632257,-1216.06365258,0.00015235,2]
[340690918,1729686632266,-565.58502372,0.000153,2]
[340690919,1729686632275,-164.64,0.00015342,2]
[340690920,1729686632284,-156.37,0.00015342,2]
[340690921,1729686632297,-2991.01252878,0.000159,2]
[340690922,1729686632306,-4545.43735438,0.00018,2]
[340690923,1729686632316,-600.0,0.00019725,2]
[340690924,1729686632325,-11000.0,0.000199,2]
[340690925,1729686632335,-4132.67,0.000199,2]
[340690926,1729686632344,-8207.54425692,0.0002,7]
[340690927,1729686632353,-5591.39,0.0002,2]
[340690928,1729686632363,-7972.80283182,0.0002,2]
[340690929,1729686632372,-14855.8460515,0.00021,2]
[340690930,1729686632382,-397.62694192,0.000245,2]
[340690931,1729686632391,-1005.02542301,0.00029688,2]
[340690932,1729686632401,-13062.17081281,0.00039,2]
[340690933,1729686632413,-1968.92248121,0.00039,2]
[340690934,1729686632457,-1324.66334,0.00039,2]
[340690935,1729686632470,-5726.41948629,0.00039,2]
[340690936,1729686632484,-497.40674173,0.00039,2]
[340690937,1729686632499,-334.3516032,0.00039,2]
[340690938,1729686632510,-337.79586419,0.00039,2]
[340690939,1729686632521,-148.44689445,0.00039,2]
[340690940,1729686632530,-372.99641773,0.0004028,120]
[340690941,1729686632543,-1627.00358227,0.0004028,120]
[340690942,1729686632553,-1380.75522138,0.0004028,30]
[340690945,1729686638144,-619.24477862,0.0004028,30]
[340690946,1729686638153,-268.25522138,0.0004028,120]
[340690947,1729686638203,-731.74477862,0.0004028,120]
[340690948,1729686638213,-207.58621768,0.00040281,120]
[340690949,1729686638262,-792.41378232,0.00040281,120]
[340690950,1729686638272,-250.0,0.00041518,120]
[340690951,1729686638281,-335.81,0.00042376,2]
[340690952,1729686638290,-150.0,0.000438,2]
[340690953,1729686638301,-3768.28555048,0.0004419,7]
[340690954,1729686638313,-562.69792186,0.0004419,7]
[340690955,1729686638329,-1118.94582766,0.0004419,7]
[340690956,1729686638338,-2784.106,0.0004429,70]
[340690957,1729686638348,-168.883,0.0004429,70]
[340690958,1729686638357,-928.06517234,0.0004449,2]
[340690959,1729686638370,-721.22102766,0.0004449,2]
[340690960,1729686638380,-521.0388,0.0004449,2]
[340690961,1729686638389,-89.79863856,0.0004464,2]
[340690962,1729686638492,-246.01136144,0.0004464,2]
[340690963,1729686638502,-353.04363856,0.00045,120]
[340690964,1729686638553,-1996.56314999,0.00045,120]
[340690965,1729686638564,-918.44599869,0.00045,120]
[340690983,1729686640111,-1000.0,0.0004028,30]
[340690984,1729686640121,-1638.824,0.00045,120]
[340690985,1729686640168,-93.12321276,0.00045,120]
[340690986,1729686640178,-568.91678724,0.000457,86]
[340690987,1729686640230,-22.26597776,0.000457,86]
[340690988,1729686640239,-150.0,0.000457,64]
[340690989,1729686640249,-215.57602224,0.000457,86]
[340690990,1729686640291,-780.62397776,0.000457,86]
[340690991,1729686640302,-156.37,0.00045753,2]
[340690992,1729686640312,-267.07,0.00046,7]
[340690993,1729686640322,-556.56476512,0.00046,2]
[340690994,1729686640332,-182.18,0.0004603,2]
[340690995,1729686640342,-4448.57,0.0004603,60]
[340690996,1729686640352,-251.0,0.000463,2]
[340690997,1729686640361,-1151.0,0.00046438,2]
[340690998,1729686640371,-335.81,0.00046904,2]
[340690999,1729686640380,-200.0,0.00046909,2]
[340691000,1729686640389,-250.0,0.00047052,120]
[340691001,1729686640399,-169.56,0.00047891,120]
[340691002,1729686640407,-150.19,0.00047973,120]
[340691003,1729686640417,-3691.93677034,0.00048,120]
[340691004,1729686640427,-5000.0,0.00048,3]
[340691005,1729686640436,-5000.0,0.00048,4]
[340691006,1729686640445,-4279.16,0.00048,3]
[340691007,1729686640455,-180.42,0.00048189,120]
[340691008,1729686640464,-222.56,0.000483,14]
[340691009,1729686640475,-1000.0,0.00048306,2]
[340691010,1729686640485,-23900.0,0.00048408,2]
[340691011,1729686640495,-6423.96488623,0.00048781,7]
[340691012,1729686640504,-582.02578726,0.00048781,7]
[340691013,1729686640514,-500.0,0.00048781,120]
[340691014,1729686640523,-500.0,0.00048781,120]
[340691015,1729686640533,-500.0,0.00048781,120]
[340691016,1729686640543,-500.0,0.00048781,120]
[340691017,1729686640554,-500.0,0.00048781,120]
[340691018,1729686640563,-500.0,0.00048781,120]
[340691019,1729686640572,-500.0,0.00048781,120]
[340691021,1729686640581,-500.0,0.00048781,120]
[340691022,1729686640590,-2009.4492,0.00048787,2]
[340691023,1729686640600,-194.6,0.00048971,120]
[340691024,1729686640609,-187.27,0.00049055,2]
[340691025,1729686640849,-182.03,0.00049074,2]
[340691026,1729686640880,-157.0,0.00049101,2]
[340691027,1729686640890,-517.9931101,0.0004912,18]
[340691028,1729686640899,-335.81,0.00049168,2]
[340691029,1729686640908,-250.0,0.00049241,120]
[340691030,1729686640917,-199.8,0.00049315,30]
[340691031,1729686640926,-500.0,0.00049315,14]
[340691032,1729686640935,-214.43280082,0.00049315,120]
[340691033,1729686640944,-523.33788256,0.00049315,120]
[340691034,1729686640953,-500.0,0.00049315,120]
[340691035,1729686640962,-500.0,0.00049315,120]
[340691036,1729686640971,-500.0,0.00049315,120]
[340691037,1729686640980,-500.0,0.00049315,120]
[340691038,1729686640989,-500.0,0.00049315,120]
[340691039,1729686640998,-500.0,0.00049315,120]
[340691040,1729686641007,-500.0,0.00049315,120]
[340691041,1729686641017,-500.0,0.00049315,120]
[340691042,1729686641026,-500.0,0.00049315,120]
[340691043,1729686641035,-500.0,0.00049315,120]
[340691044,1729686641045,-500.0,0.00049315,120]
[340691045,1729686641055,-500.0,0.00049315,120]
[340691046,1729686641064,-500.0,0.00049315,120]
[340691047,1729686641073,-500.0,0.00049315,120]
[340691048,1729686641082,-500.0,0.00049315,120]
[340691049,1729686641092,-500.0,0.00049315,120]
[340691050,1729686641105,-500.0,0.00049315,120]
[340691051,1729686641115,-223.28,0.00049413,120]
[340691052,1729686641124,-421.77993276,0.00049524,2]
[340691053,1729686641134,-421.77993276,0.00049825,2]
[340691054,1729686641143,-500.0,0.00049863,120]
[340691055,1729686641152,-500.0,0.00049863,120]
[340691056,1729686641162,-500.0,0.00049863,120]
[340691057,1729686641172,-3006.17,0.0004989,10]
[340691058,1729686641181,-7811.97510137,0.000499,2]
[340691059,1729686641190,-617.94169777,0.0005,3]
[340691066,1729686643228,-1000.0,0.0004419,7]
[340691067,1729686643238,-1560.0,0.0005,3]
[340691068,1729686643348,-2822.05830223,0.0005,3]
[340691069,1729686643357,-5000.0,0.0005,4]
[340691070,1729686643367,-606.79,0.00050082,120]
[340691071,1729686643376,-606.79,0.00050082,120]
[340691072,1729686643385,-606.79,0.00050082,120]
[340691073,1729686643394,-606.79,0.00050082,120]
[340691074,1729686643403,-606.79,0.00050164,120]
[340691075,1729686643412,-421.77993276,0.00050339,2]
[340691076,1729686643421,-500.0,0.0005041,120]
[340691077,1729686643431,-500.0,0.0005041,120]
[340691078,1729686643440,-500.0,0.0005041,120]
[340691079,1729686643449,-508.90238689,0.0005041,120]
[340691080,1729686643458,-500.0,0.0005041,14]
[340691081,1729686643467,-500.0,0.0005041,120]
[340691082,1729686643476,-500.0,0.0005041,120]
[340691083,1729686643485,-500.0,0.0005041,120]
[340691084,1729686643495,-500.0,0.0005041,120]
[340691085,1729686643504,-502.46331086,0.0005041,120]
[340691086,1729686643513,-500.0,0.0005041,120]
[340691087,1729686643523,-500.0,0.0005041,120]
[340691088,1729686643532,-500.0,0.0005041,120]
[340691089,1729686643542,-500.0,0.0005041,120]
[340691090,1729686643553,-219.84991673,0.0005041,120]
[340691091,1729686643562,-500.0,0.0005041,120]
[340691092,1729686643572,-500.0,0.0005041,120]
[340691093,1729686643582,-500.0,0.0005041,120]
[340691094,1729686643592,-500.0,0.0005041,120]
[340691095,1729686643601,-500.0,0.0005041,120]
[340691096,1729686643611,-500.0,0.0005041,120]
[340691097,1729686643621,-390.69257039,0.0005041,120]
[340691098,1729686643631,-500.0,0.0005041,120]
[340691099,1729686643639,-500.0,0.0005041,120]
[340691100,1729686643649,-500.0,0.0005041,120]
[340691101,1729686643659,-421.77993276,0.00050648,2]
[340691102,1729686643669,-1070.64,0.00050721,120]
[340691103,1729686643678,-1213.58,0.00050753,120]
[340691104,1729686643687,-1152.97,0.00050762,120]
[340691105,1729686643696,-1213.58,0.00050762,120]
[340691106,1729686643707,-835.65,0.00050841,120]
[340691107,1729686643716,-500.0,0.00050958,120]
[340691108,1729686643725,-500.0,0.00050958,120]
[340691109,1729686643735,-500.0,0.00050958,120]
[340691110,1729686643744,-500.0,0.00050958,14]
[340691111,1729686643753,-500.0,0.00050958,120]
[340691112,1729686643762,-500.0,0.00050958,120]
[340691113,1729686643771,-500.0,0.00050958,120]
[340691114,1729686643780,-500.0,0.00050958,120]
[340691115,1729686643790,-500.0,0.00050958,120]
[340691116,1729686643801,-444.41493497,0.00050958,120]
[340691117,1729686643811,-500.0,0.00050958,120]
[340691118,1729686643821,-500.0,0.00050958,120]
[340691119,1729686643831,-500.0,0.00050958,120]
[340691120,1729686643841,-500.0,0.00050958,120]
[340691121,1729686643850,-500.0,0.00050958,120]
[340691122,1729686643859,-500.0,0.00050958,120]
[340691123,1729686643869,-500.0,0.00050958,120]
[340691124,1729686643878,-500.0,0.00050958,120]
[340691125,1729686643888,-500.0,0.00050958,120]
[340691126,1729686643897,-606.79,0.00050986,120]
[340691127,1729686643907,-606.79,0.00050986,120]
[340691128,1729686643916,-253.09,0.00050986,120]
[340691129,1729686643926,-2500.0,0.00051406,2]
[340691130,1729686643935,-335.81,0.00051432,2]
[340691131,1729686643945,-500.0,0.00051506,120]
[340691132,1729686643954,-500.0,0.00051506,120]
[340691133,1729686643963,-500.0,0.00051506,120]
[340691134,1729686643973,-500.0,0.00051506,14]
[340691135,1729686643982,-500.0,0.00051506,120]
[340691136,1729686643991,-500.0,0.00051506,120]
[340691137,1729686644000,-500.0,0.00051506,120]
[340691138,1729686644009,-500.0,0.00051506,120]
[340691139,1729686644019,-500.0,0.00051506,120]
[340691140,1729686644028,-500.0,0.00051506,120]
[340691141,1729686644037,-500.0,0.00051506,120]
[340691142,1729686644048,-500.0,0.00051506,120]
[340691143,1729686644057,-500.0,0.00051506,120]
[340691144,1729686644066,-500.0,0.00051506,120]
[340691145,1729686644075,-500.0,0.00051506,120]
[340691146,1729686644086,-500.0,0.00051506,120]
[340691147,1729686644096,-500.0,0.00051506,120]
[340691148,1729686644109,-500.0,0.00051506,120]
[340691149,1729686644119,-187.77086445,0.0005154,120]
[340691150,1729686644129,-251.02853115,0.000518,2]
[340691151,1729686644139,-351.94881567,0.00051943,120]
[340691152,1729686644150,-31398.0265,0.00051944,2]
[340691153,1729686644159,-1000.0,0.00051953,120]
[340691154,1729686644169,-2061.1445,0.00051954,2]
[340691155,1729686644178,-150.0,0.00052,120]
[340691156,1729686644188,-500.0,0.00052054,120]
[340691157,1729686644200,-429.72506533,0.00052054,120]
[340691158,1729686644210,-333.03818506,0.00052054,120]
[340691159,1729686644219,-500.0,0.00052054,14]
[340691160,1729686644228,-500.0,0.00052054,120]
[340691161,1729686644239,-500.0,0.00052054,120]
[340691162,1729686644248,-500.0,0.00052054,120]
[340691163,1729686644258,-500.0,0.00052054,120]
[340691164,1729686644268,-369.010241,0.00052054,120]
[340691165,1729686644278,-500.0,0.00052054,120]
[340691166,1729686644289,-500.0,0.00052054,120]
[340691167,1729686644300,-519.72033136,0.00052054,120]
[340691168,1729686644309,-241.09039978,0.00052054,120]
[340691169,1729686644319,-500.0,0.00052054,120]
[340691170,1729686644329,-500.0,0.00052054,120]
[340691171,1729686644338,-500.0,0.00052054,120]
[340691172,1729686644347,-500.0,0.00052054,120]
[340691173,1729686644357,-159.35679552,0.00052054,120]
[340691174,1729686644370,-340.64320448,0.00052054,120]
[340691175,1729686644379,-6000.0,0.000522,120]
[340691176,1729686644389,-751.53274532,0.00052219,24]
[340691177,1729686644398,-23884.9860614,0.00052253,11]
[340691178,1729686644408,-44245.43144298,0.00052263,30]
[340691179,1729686644420,-4593.56855702,0.00052263,30]
[340691180,1729686644429,-7961.66202045,0.00052319,11]
[340691181,1729686644439,-430.16,0.00052329,30]
[340691182,1729686644449,-864.63,0.00052329,30]
[340691183,1729686644458,-774.45523176,0.0005233,2]
[340691184,1729686644467,-182.03,0.00052346,2]
[340691185,1729686644477,-500.0,0.00052349,120]
[340691186,1729686644486,-7513.88440057,0.0005243,11]
[340691187,1729686644497,-317.8248,0.0005243,11]
[340691188,1729686644511,-266.8175498,0.0005243,11]
[340691190,1729686646221,-606.79,0.00050082,30]
[340691191,1729686646231,-33235.07285,0.0005243,11]
[340691192,1729686646279,-333.18,0.0005243,11]
[340691196,1729686646695,-1653.7,0.0005243,11]
[340691197,1729686646707,-3412.5,0.0005243,11]
[340691198,1729686646718,-313.83093245,0.0005243,11]
[340691199,1729686646729,-24608.14765128,0.0005243,11]
[340691200,1729686646739,-9649.56203508,0.0005243,11]
[340691201,1729686646749,-150.99,0.0005243,120]
[340691202,1729686646758,-13915.79263689,0.0005244,30]
[340691203,1729686646769,-88233.912,0.0005244,30]
[340691204,1729686646780,-18507.25820513,0.0005244,30]
[340691205,1729686646791,-528.026016,0.0005244,30]
[340691206,1729686646805,-8217.72561634,0.0005244,30]
[340691208,1729686758105,250.0,0.0001,2]
[340691209,1729686759274,300.0,0.00012,2]
[340691210,1729687112100,-264.3888,0.00014825,2]
[340691211,1729687112123,-158.34,0.00015342,2]
[340691212,1729687112145,-250.63,0.000447,2]
[340691213,1729687142697,300.0,0.00019725,2]
[340691214,1729687143521,420.0,0.00021484,2]
[340691215,1729687144291,212.0,0.00023401,2]
[340691216,1729687324639,548.657,0.0004501,2]
[340691217,1729687353690,61979.0,0.0001726,3]
[340691218,1729687482027,420.0,0.000152,2]
[340691219,1729687482857,378.0,0.000152,2]
[340691220,1729687503961,150.0,0.00034548,10]
[340691222,1729687542071,10885.33987712,0.00039998,120]
[340691223,1729687604178,156.07,0.00015342,2]
[340691231,1729687832318,-150.0,0.000455,15]
[340691232,1729687832328,-182.03,0.00047048,2]